fUSD/lending_fUSD_20240426
["ID","MTS","AMOUNT","RATE_DAILY","PERIOD"]
[323604462,1714107033281,-500.0,0.00011,2]
[323604463,1714107033292,-500.0,0.00011,2]
[323604464,1714107033301,-500.0,0.00011,2]
[323604465,1714107033311,-500.0,0.00011,2]
[323604466,1714107033321,-511.15552971,0.00011,2]
[323604467,1714107033331,-500.0,0.00011,2]
[323604468,1714107033340,-500.0,0.00011,2]
[323604469,1714107033350,-500.0,0.00011,2]
[323604470,1714107033360,-500.85725434,0.00011,2]
[323604471,1714107033369,-500.0,0.00011,2]
[323604472,1714107033378,-500.0,0.00011,2]
[323604473,1714107033388,-500.0,0.00011,2]
[323604474,1714107033397,-500.0,0.00011,2]
[323604475,1714107033407,-500.0,0.00011,2]
[323604476,1714107033416,-500.0,0.00011,2]
[323604477,1714107033426,-655.47,0.00011,2]
[323604478,1714107033435,-500.0,0.00011,2]
[323604479,1714107033445,-500.0,0.00011,2]
[323604480,1714107033454,-500.0,0.00011,2]
[323604481,1714107033464,-500.0,0.00011,2]
[323604482,1714107033473,-500.0,0.00011,2]
[323604483,1714107033484,-500.0,0.00011,2]
[323604484,1714107033493,-500.0,0.00011,2]
[323604485,1714107033502,-243.87888827,0.00011,2]
[323604486,1714107033512,-500.0,0.00011,2]
[323604487,1714107033521,-500.0,0.00011,2]
[323604488,1714107033530,-500.0,0.00011,2]
[323604489,1714107033541,-500.0,0.00011,2]
[323604490,1714107033550,-507.64839213,0.00011,2]
[323604491,1714107033559,-500.0,0.00011,2]
[323604492,1714107033568,-506.3014546,0.00011,2]
[323604493,1714107033577,-500.0,0.00011,2]
[323604494,1714107033587,-500.0,0.00011,2]
[323604495,1714107033598,-532.07,0.00011,2]
[323604496,1714107033609,-500.0,0.00011,2]
[323604497,1714107033619,-500.0,0.00011,2]
[323604498,1714107033627,-500.0,0.00011,2]
[323604499,1714107033637,-500.0,0.00011,2]
[323604500,1714107033646,-500.0,0.00011,2]
[323604501,1714107033655,-150.79,0.00011048,2]
[323604502,1714107033667,-227.08387452,0.0001113,2]
[323604503,1714107033684,-274.17427861,0.0001113,2]
[323604504,1714107033693,-1000.0,0.0001113,2]
[323604505,1714107033703,-298.24507507,0.0001113,2]
[323604506,1714107033719,-463.05,0.0001113,2]
[323604507,1714107033741,-240.70492493,0.0001113,2]
[323604508,1714107033750,-500.0,0.0001113,2]
[323604509,1714107033760,-500.0,0.0001113,2]
[323604510,1714107033770,-500.0,0.0001113,2]
[323604511,1714107033779,-500.0,0.0001113,2]
[323604512,1714107033788,-1691.8,0.0001113,2]
[323604513,1714107033798,-857.83,0.0001113,2]
[323604514,1714107033807,-500.0,0.0001113,2]
[323604515,1714107033817,-500.0,0.0001113,2]
[323604516,1714107033827,-500.0,0.0001113,2]
[323604517,1714107033837,-500.0,0.0001113,2]
[323604518,1714107033846,-274.67155463,0.0001113,2]
[323604519,1714107033857,-591.826501,0.0001113,2]
[323604520,1714107033883,-222.78194437,0.0001113,2]
[323604521,1714107033893,-500.0,0.0001113,2]
[323604522,1714107033902,-507.04,0.0001113,2]
[323604523,1714107033913,-500.0,0.0001113,2]
[323604524,1714107033923,-500.0,0.0001113,2]
[323604525,1714107033933,-500.0,0.0001113,2]
[323604526,1714107033942,-500.0,0.0001113,2]
[323604527,1714107033951,-1201.52103059,0.0001113,2]
[323604528,1714107033962,-602.58454772,0.0001113,2]
[323604529,1714107033973,-153.99442169,0.0001113,2]
[323604530,1714107033984,-500.0,0.0001113,2]
[323604531,1714107033996,-594.16095566,0.0001113,2]
[323604532,1714107034006,-1250.77,0.0001113,2]
[323604533,1714107034015,-500.0,0.0001113,2]
[323604534,1714107034024,-564.11,0.0001113,2]
[323604535,1714107034033,-500.0,0.0001113,2]
[323604536,1714107034044,-622.94,0.0001113,2]
[323604537,1714107034053,-1775.05069879,0.0001113,2]
[323604538,1714107034065,-708.26288318,0.0001113,2]
[323604539,1714107034076,-314.02641803,0.0001113,2]
[323604540,1714107034086,-500.0,0.0001113,2]
[323604541,1714107034095,-193.12949981,0.0001113,2]
[323604542,1714107034107,-306.87050019,0.0001113,2]
[323604543,1714107034117,-565.51,0.0001113,2]
[323604544,1714107034127,-4540.48,0.0001113,2]
[323604545,1714107034136,-199.32021034,0.0001113,2]
[323604546,1714107034147,-272.91080538,0.0001113,2]
[323604547,1714107034163,-166.04903327,0.0001113,2]
[323604548,1714107034172,-365.58881197,0.0001113,2]
[323604549,1714107034183,-421.94944597,0.0001113,2]
[323604550,1714107034198,-31.01174206,0.0001113,2]
[323604551,1714107034207,-500.0,0.0001113,2]
[323604552,1714107034217,-500.0,0.0001113,2]
[323604553,1714107034226,-500.0,0.0001113,2]
[323604554,1714107034235,-102.09580767,0.0001113,2]
[323604556,1714107037989,-397.90419233,0.0001113,2]
[323604557,1714107037999,-294.89052863,0.0001113,2]
[323604558,1714107038097,-205.10947137,0.0001113,2]
[323604559,1714107038107,-500.0,0.0001113,2]
[323604560,1714107038116,-500.0,0.0001113,2]
[323604561,1714107038126,-500.0,0.0001113,2]
[323604562,1714107038135,-500.35,0.0001113,2]
[323604563,1714107038145,-977.14052863,0.00011174,2]
[323604564,1714107038157,-1425.94447234,0.00011174,2]
[323604565,1714107038169,-61606.21839903,0.00011174,2]
[323604566,1714107038179,-500.0,0.00011273,2]
[323604567,1714107038188,-500.0,0.00011274,2]
[323604568,1714107038198,-500.0,0.00011274,2]
[323604569,1714107038208,-500.0,0.00011274,2]
[323604570,1714107038217,-500.0,0.00011274,2]
[323604571,1714107038226,-500.0,0.00011274,2]
[323604572,1714107038236,-500.0,0.00011274,2]
[323604573,1714107038246,-500.0,0.00011274,2]
[323604574,1714107038255,-500.0,0.00011274,2]
[323604575,1714107038265,-500.0,0.00011274,2]
[323604576,1714107038274,-450.00902069,0.00011274,2]
[323604577,1714107038283,-500.0,0.00011274,2]
[323604578,1714107038293,-500.0,0.00011274,2]
[323604579,1714107038302,-500.0,0.00011274,2]
[323604580,1714107038311,-500.0,0.00011274,2]
[323604581,1714107038320,-500.0,0.00011274,2]
[323604582,1714107038330,-500.0,0.00011274,2]
[323604583,1714107038340,-500.0,0.00011274,2]
[323604584,1714107038350,-624.70803636,0.00011274,2]
[323604585,1714107038360,-500.0,0.00011274,2]
[323604586,1714107038370,-500.0,0.00011274,2]
[323604587,1714107038379,-500.0,0.00011274,2]
[323604588,1714107038388,-500.0,0.00011274,2]
[323604589,1714107038398,-500.0,0.00011274,2]
[323604590,1714107038407,-500.0,0.00011274,2]
[323604591,1714107038416,-500.0,0.00011274,2]
[323604592,1714107038425,-500.0,0.00011274,2]
[323604593,1714107038435,-500.0,0.00011274,2]
[323604594,1714107038445,-500.0,0.00011274,2]
[323604595,1714107038454,-500.0,0.00011274,2]
[323604596,1714107038464,-500.0,0.00011274,2]
[323604597,1714107038473,-500.0,0.00011274,2]
[323604599,1714107038482,-500.0,0.00011274,2]
[323604601,1714107038491,-500.0,0.00011274,2]
[323604602,1714107038500,-500.0,0.00011274,2]
[323604604,1714107038510,-357.0728604,0.00011274,2]
[323604606,1714107038519,-500.0,0.00011274,2]
[323604607,1714107038528,-500.0,0.00011274,2]
[323604608,1714107038537,-500.0,0.00011274,2]
[323604609,1714107038546,-655.47,0.00011274,2]
[323604610,1714107038555,-500.0,0.00011274,2]
[323604611,1714107038564,-500.0,0.00011274,2]
[323604612,1714107038573,-500.0,0.00011274,2]
[323604613,1714107038582,-500.0,0.00011274,2]
[323604614,1714107038591,-500.0,0.00011274,2]
[323604615,1714107038600,-150.79,0.00011329,2]
[323604616,1714107038610,-3176.56045078,0.00011398,2]
[323604617,1714107038618,-500.0,0.00011404,2]
[323604618,1714107038628,-500.0,0.00011404,2]
[323604619,1714107038637,-500.0,0.00011404,2]
[323604620,1714107038646,-857.83,0.00011404,2]
[323604621,1714107038655,-438.94103108,0.00011404,2]
[323604622,1714107038694,-500.0,0.00011404,2]
[323604623,1714107038704,-500.0,0.00011404,2]
[323604624,1714107038714,-500.0,0.00011404,2]
[323604625,1714107038724,-1089.28,0.00011404,2]
[323604626,1714107038734,-507.04,0.00011404,2]
[323604627,1714107038744,-500.0,0.00011404,2]
[323604628,1714107038755,-500.0,0.00011404,2]
[323604629,1714107038765,-500.0,0.00011404,2]
[323604630,1714107038776,-500.0,0.00011404,2]
[323604631,1714107038786,-1958.1,0.00011404,2]
[323604632,1714107038798,-500.0,0.00011404,2]
[323604633,1714107038809,-1250.77,0.00011404,2]
[323604634,1714107038819,-564.11,0.00011404,2]
[323604635,1714107038830,-500.0,0.00011404,2]
[323604636,1714107038841,-622.94,0.00011404,2]
[323604637,1714107038850,-2797.34,0.00011404,2]
[323604638,1714107038861,-500.0,0.00011404,2]
[323604639,1714107038871,-500.0,0.00011404,2]
[323604640,1714107038881,-565.51,0.00011404,2]
[323604641,1714107038892,-4540.48,0.00011404,2]
[323604642,1714107038902,-818.55,0.00011404,2]
[323604643,1714107038913,-500.0,0.00011404,2]
[323604644,1714107038923,-500.0,0.00011404,2]
[323604645,1714107038933,-500.0,0.00011404,2]
[323604646,1714107038943,-500.0,0.00011404,2]
[323604647,1714107038954,-500.0,0.00011404,2]
[323604648,1714107038964,-500.57,0.00011404,2]
[323604649,1714107038975,-500.0,0.00011404,2]
[323604650,1714107038984,-968.78,0.00011436,2]
[323604651,1714107038993,-500.0,0.00011445,2]
[323604652,1714107039002,-500.0,0.00011445,2]
[323604653,1714107039011,-536.33,0.00011445,2]
[323604654,1714107039021,-1559.44,0.00011445,2]
[323604655,1714107039032,-500.0,0.00011445,2]
[323604656,1714107039042,-500.0,0.00011445,2]
[323604657,1714107039055,-500.0,0.00011445,2]
[323604658,1714107039065,-500.0,0.00011445,2]
[323604659,1714107039075,-500.0,0.00011445,2]
[323604660,1714107039085,-500.0,0.00011445,2]
[323604661,1714107039096,-1865.69,0.00011445,2]
[323604662,1714107039106,-796.67,0.00011445,2]
[323604663,1714107039117,-500.0,0.00011445,2]
[323604664,1714107039126,-500.0,0.00011445,2]
[323604665,1714107039137,-1498.87,0.00011445,2]
[323604666,1714107039148,-500.0,0.00011445,2]
[323604667,1714107039159,-1414.92,0.00011445,2]
[323604668,1714107039170,-500.0,0.00011445,2]
[323604669,1714107039179,-500.0,0.00011445,2]
[323604670,1714107039189,-509.46,0.00011445,2]
[323604671,1714107039198,-1184.57,0.00011445,2]
[323604672,1714107039207,-548.62,0.00011445,2]
[323604673,1714107039216,-540.52,0.00011445,2]
[323604674,1714107039226,-500.0,0.00011445,2]
[323604675,1714107039235,-500.0,0.00011445,2]
[323604676,1714107039244,-7222.37,0.00011445,2]
[323604677,1714107039253,-500.0,0.00011445,2]
[323604678,1714107039262,-500.0,0.00011445,2]
[323604679,1714107039272,-500.0,0.00011445,2]
[323604680,1714107039281,-500.0,0.00011445,2]
[323604681,1714107039290,-500.0,0.00011445,2]
[323604682,1714107039300,-500.0,0.00011445,2]
[323604683,1714107039310,-500.0,0.00011446,2]
[323604684,1714107039320,-328.37401379,0.00011446,2]
[323604685,1714107039330,-500.0,0.00011446,2]
[323604686,1714107039339,-601.4681529,0.00011446,2]
[323604687,1714107039350,-500.0,0.00011446,2]
[323604688,1714107039360,-500.0,0.00011446,2]
[323604689,1714107039369,-500.0,0.00011446,2]
[323604690,1714107039379,-500.0,0.00011446,2]
[323604691,1714107039388,-610.64488552,0.00011446,2]
[323604692,1714107039398,-183.65006605,0.00011446,2]
[323604693,1714107039407,-500.0,0.00011446,2]
[323604694,1714107039416,-539.70659348,0.00011446,2]
[323604695,1714107039426,-500.0,0.00011446,2]
[323604696,1714107039436,-501.75261535,0.00011446,2]
[323604697,1714107039446,-500.0,0.00011446,2]
[323604698,1714107039457,-500.0,0.00011446,2]
[323604699,1714107039468,-500.0,0.00011446,2]
[323604700,1714107039478,-150.0,0.00011446,2]
[323604701,1714107039488,-500.0,0.00011446,2]
[323604702,1714107039497,-500.0,0.00011446,2]
[323604703,1714107039508,-500.0,0.00011446,2]
[323604704,1714107039518,-500.0,0.00011446,2]
[323604705,1714107039527,-500.0,0.00011446,2]
[323604706,1714107039537,-500.0,0.00011446,2]
[323604707,1714107039547,-500.0,0.00011446,2]
[323604708,1714107039557,-500.0,0.00011446,2]
[323604709,1714107039568,-500.0,0.00011446,2]
[323604710,1714107039580,-151.52633294,0.00011446,2]
[323604711,1714107039590,-500.0,0.00011446,2]
[323604712,1714107039600,-500.0,0.00011446,2]
[323604713,1714107039609,-500.0,0.00011446,2]
[323604714,1714107039618,-502.43884959,0.00011446,2]
[323604715,1714107039627,-500.0,0.00011446,2]
[323604716,1714107039637,-500.0,0.00011446,2]
[323604717,1714107039647,-500.0,0.00011446,2]
[323604718,1714107039657,-500.0,0.00011446,2]
[323604719,1714107039670,-500.0,0.00011446,2]
[323604720,1714107039679,-500.0,0.00011446,2]
[323604721,1714107039690,-500.0,0.00011446,2]
[323604722,1714107039699,-500.0,0.00011446,2]
[323604723,1714107039708,-500.0,0.00011446,2]
[323604724,1714107039718,-500.0,0.00011446,2]
[323604725,1714107039727,-509.77,0.00011446,2]
[323604726,1714107039736,-500.0,0.00011446,2]
[323604727,1714107039748,-500.0,0.00011446,2]
[323604728,1714107039758,-501.29920345,0.00011446,2]
[323604729,1714107039767,-500.0,0.00011446,2]
[323604730,1714107039776,-500.0,0.00011446,2]
[323604731,1714107039785,-500.0,0.00011446,2]
[323604732,1714107039795,-500.0,0.00011446,2]
[323604733,1714107039804,-500.0,0.00011446,2]
[323604734,1714107039813,-500.0,0.00011446,2]
[323604735,1714107039822,-500.0,0.00011446,2]
[323604736,1714107039832,-500.0,0.00011446,2]
[323604737,1714107039843,-500.0,0.00011446,2]
[323604738,1714107039853,-523.126889,0.00011446,2]
[323604739,1714107039863,-500.0,0.00011446,2]
[323604740,1714107039872,-500.0,0.00011446,2]
[323604741,1714107039881,-500.0,0.00011446,2]
[323604742,1714107039890,-500.0,0.00011446,2]
[323604743,1714107039900,-475.43450266,0.00011446,2]
[323604744,1714107039910,-500.0,0.00011446,2]
[323604745,1714107039920,-500.0,0.00011446,2]
[323604746,1714107039930,-500.0,0.00011446,2]
[323604747,1714107039940,-500.0,0.00011446,2]
[323604748,1714107039949,-500.0,0.00011446,2]
[323604749,1714107039958,-500.0,0.00011446,2]
[323604750,1714107039966,-500.0,0.00011446,2]
[323604751,1714107039976,-500.0,0.00011446,2]
[323604752,1714107039985,-522.46013381,0.00011446,2]
[323604753,1714107039995,-500.0,0.00011446,2]
[323604754,1714107040005,-213.39787774,0.00011446,2]
[323604755,1714107040014,-1273.24,0.00011446,2]
[323604756,1714107040023,-500.0,0.00011446,2]
[323604757,1714107040033,-500.0,0.00011446,2]
[323604758,1714107040042,-500.0,0.00011446,2]
[323604759,1714107040053,-500.0,0.00011446,2]
[323604760,1714107040062,-500.0,0.00011446,2]
[323604761,1714107040071,-310.33075509,0.00011446,2]
[323604762,1714107040375,-189.66924491,0.00011446,2]
[323604763,1714107040384,-500.0,0.00011446,2]
[323604764,1714107040394,-500.0,0.00011446,2]
[323604765,1714107040404,-30.53851415,0.00011446,2]
[323604766,1714107040414,-406.46916604,0.00011446,2]
[323604767,1714107040442,-62.99231981,0.00011446,2]
[323604768,1714107040451,-365.62709726,0.00011446,2]
[323604769,1714107040462,-134.37290274,0.00011446,2]
[323604770,1714107040470,-180.81740653,0.00011446,2]
[323604772,1714107040646,-500.0,0.00011445,2]
[323604773,1714107040657,-214.99457529,0.00011446,2]
[323604774,1714107040671,-500.0,0.00011446,2]
[323604775,1714107040682,-209.40598294,0.00011446,2]
[323604776,1714107040719,-451.9375,0.00011445,2]
[323604777,1714107040730,-48.0625,0.00011445,2]
[323604778,1714107040739,-1881.48401706,0.00011446,2]
[323604779,1714107040749,-500.0,0.00011446,2]
[323604780,1714107040760,-500.0,0.00011446,2]
[323604781,1714107040770,-500.0,0.00011446,2]
[323604782,1714107040781,-505.04849807,0.00011446,2]
[323604783,1714107040791,-470.80595066,0.00011446,2]
[323604784,1714107040802,-500.0,0.00011446,2]
[323604785,1714107040812,-500.0,0.00011446,2]
[323604786,1714107040821,-500.0,0.00011446,2]
[323604787,1714107040832,-500.0,0.00011446,2]
[323604788,1714107040842,-500.0,0.00011446,2]
[323604789,1714107040852,-500.0,0.00011446,2]
[323604790,1714107040862,-500.0,0.00011446,2]
[323604791,1714107040872,-500.0,0.00011446,2]
[323604792,1714107040882,-500.0,0.00011446,2]
[323604793,1714107040892,-531.04,0.00011446,2]
[323604794,1714107040902,-500.0,0.00011446,2]
[323604795,1714107040913,-150.0,0.00011446,2]
[323604796,1714107040923,-500.0,0.00011446,2]
[323604797,1714107040933,-500.0,0.00011446,2]
[323604798,1714107040942,-390.0239562,0.00011446,2]
[323604799,1714107040953,-500.0,0.00011446,2]
[323604800,1714107040963,-247.13772084,0.00011446,2]
[323604801,1714107040973,-500.0,0.00011446,2]
[323604802,1714107040983,-500.0,0.00011446,2]
[323604803,1714107040993,-500.0,0.00011446,2]
[323604804,1714107041002,-500.0,0.00011446,2]
[323604805,1714107041012,-644.97,0.00011446,2]
[323604806,1714107041023,-500.0,0.00011446,2]
[323604807,1714107041034,-169.25849318,0.00011446,2]
[323604808,1714107041044,-500.0,0.00011446,2]
[323604809,1714107041055,-502.4159112,0.00011446,2]
[323604810,1714107041065,-500.0,0.00011446,2]
[323604811,1714107041075,-888.37,0.00011446,2]
[323604812,1714107041085,-503.5646285,0.00011446,2]
[323604813,1714107041095,-608.25,0.00011446,2]
[323604814,1714107041106,-500.0,0.00011446,2]
[323604815,1714107041116,-500.0,0.00011446,2]
[323604816,1714107041125,-1284.14,0.00011446,2]
[323604817,1714107041135,-500.0,0.00011446,2]
[323604818,1714107041146,-500.0,0.00011446,2]
[323604819,1714107041161,-1335.8,0.00011446,2]
[323604820,1714107041171,-502.82381937,0.00011446,2]
[323604821,1714107041182,-500.0,0.00011446,2]
[323604822,1714107041193,-500.0,0.00011446,2]
[323604823,1714107041202,-500.0,0.00011446,2]
[323604824,1714107041212,-501.36267847,0.00011446,2]
[323604825,1714107041223,-500.0,0.00011446,2]
[323604826,1714107041233,-500.0,0.00011446,2]
[323604827,1714107041243,-500.0,0.00011446,2]
[323604828,1714107041253,-500.0,0.00011446,2]
[323604829,1714107041263,-500.0,0.00011446,2]
[323604830,1714107041274,-500.0,0.00011446,2]
[323604831,1714107041283,-500.0,0.00011446,2]
[323604832,1714107041294,-500.0,0.00011446,2]
[323604833,1714107041305,-500.0,0.00011446,2]
[323604834,1714107041315,-500.0,0.00011446,2]
[323604835,1714107041325,-500.0,0.00011446,2]
[323604836,1714107041336,-500.0,0.00011446,2]
[323604837,1714107041345,-502.17999434,0.00011446,2]
[323604838,1714107041355,-500.0,0.00011446,2]
[323604839,1714107041365,-500.0,0.00011446,2]
[323604840,1714107041374,-500.0,0.00011446,2]
[323604841,1714107041385,-500.0,0.00011446,2]
[323604842,1714107041394,-500.0,0.00011446,2]
[323604843,1714107041404,-500.0,0.00011446,2]
[323604844,1714107041413,-500.0,0.00011446,2]
[323604845,1714107041422,-500.0,0.00011446,2]
[323604846,1714107041432,-500.0,0.00011446,2]
[323604847,1714107041442,-500.0,0.00011446,2]
[323604848,1714107041451,-500.0,0.00011446,2]
[323604849,1714107041461,-500.0,0.00011446,2]
[323604850,1714107041470,-543.75668948,0.00011446,2]
[323604851,1714107041480,-500.0,0.00011446,2]
[323604852,1714107041490,-500.0,0.00011446,2]
[323604853,1714107041500,-500.0,0.00011446,2]
[323604854,1714107041509,-500.0,0.00011446,2]
[323604855,1714107041519,-500.0,0.00011446,2]
[323604856,1714107041528,-643.78,0.00011446,2]
[323604857,1714107041537,-500.0,0.00011446,2]
[323604858,1714107041550,-500.0,0.00011446,2]
[323604859,1714107041560,-927.45,0.00011446,2]
[323604860,1714107041570,-500.0,0.00011446,2]
[323604861,1714107041579,-500.0,0.00011446,2]
[323604862,1714107041589,-500.0,0.00011446,2]
[323604863,1714107041598,-641.12,0.00011446,2]
[323604864,1714107041608,-502.05591058,0.00011446,2]
[323604865,1714107041618,-500.0,0.00011446,2]
[323604866,1714107041629,-500.0,0.00011446,2]
[323604867,1714107041641,-500.0,0.00011446,2]
[323604868,1714107041653,-500.0,0.00011446,2]
[323604869,1714107041664,-503.06516908,0.00011446,2]
[323604870,1714107041677,-3208.02,0.00011446,2]
[323604871,1714107041900,-500.0,0.00011446,2]
[323604872,1714107041912,-500.0,0.00011446,2]
[323604873,1714107041922,-500.0,0.00011446,2]
[323604874,1714107041931,-500.0,0.00011446,2]
[323604875,1714107041940,-500.0,0.00011446,2]
[323604876,1714107041950,-500.0,0.00011446,2]
[323604877,1714107041959,-500.0,0.00011446,2]
[323604878,1714107041968,-500.0,0.00011446,2]
[323604879,1714107041977,-500.0,0.00011447,2]
[323604880,1714107041986,-2893.85,0.00011447,2]
[323604881,1714107041995,-12615.64617632,0.00011547,2]
[323604882,1714107042004,-456.00966855,0.00011547,2]
[323604883,1714107042013,-500.0,0.00011548,2]
[323604884,1714107042022,-500.0,0.00011548,2]
[323604885,1714107042031,-500.0,0.00011548,2]
[323604886,1714107042040,-500.0,0.00011548,2]
[323604887,1714107042051,-500.0,0.00011548,2]
[323604888,1714107042060,-500.0,0.00011548,2]
[323604889,1714107042069,-500.0,0.00011548,2]
[323604890,1714107042078,-500.0,0.00011548,2]
[323604891,1714107042088,-500.0,0.00011548,2]
[323604892,1714107042097,-500.0,0.00011548,2]
[323604893,1714107042106,-500.0,0.00011548,2]
[323604894,1714107042115,-500.0,0.00011548,2]
[323604895,1714107042125,-500.0,0.00011548,2]
[323604896,1714107042134,-500.0,0.00011548,2]
[323604897,1714107042144,-500.0,0.00011548,2]
[323604898,1714107042153,-180.65360213,0.00011548,2]
[323604899,1714107042164,-500.0,0.00011548,2]
[323604900,1714107042173,-500.0,0.00011548,2]
[323604901,1714107042182,-500.0,0.00011548,2]
[323604902,1714107042191,-500.0,0.00011548,2]
[323604903,1714107042200,-500.0,0.00011548,2]
[323604904,1714107042210,-500.0,0.00011548,2]
[323604905,1714107042219,-500.0,0.00011548,2]
[323604906,1714107042228,-500.0,0.00011548,2]
[323604907,1714107042240,-500.0,0.00011548,2]
[323604908,1714107042249,-500.0,0.00011548,2]
[323604909,1714107042259,-500.0,0.00011548,2]
[323604910,1714107042268,-500.0,0.00011548,2]
[323604911,1714107042277,-500.0,0.00011548,2]
[323604912,1714107042286,-500.0,0.00011548,2]
[323604913,1714107042297,-500.0,0.00011548,2]
[323604914,1714107042307,-655.47,0.00011548,2]
[323604915,1714107042316,-489.38,0.00011548,2]
[323604916,1714107042325,-500.0,0.00011548,2]
[323604917,1714107042334,-500.0,0.00011678,2]
[323604918,1714107042344,-500.0,0.00011678,2]
[323604919,1714107042353,-500.0,0.00011678,2]
[323604920,1714107042362,-500.0,0.00011678,2]
[323604921,1714107042371,-857.83,0.00011678,2]
[323604922,1714107042381,-500.0,0.00011678,2]
[323604923,1714107042391,-500.0,0.00011678,2]
[323604924,1714107042400,-500.0,0.00011678,2]
[323604925,1714107042410,-1089.28,0.00011678,2]
[323604926,1714107042420,-507.04,0.00011678,2]
[323604927,1714107042429,-500.0,0.00011678,2]
[323604928,1714107042439,-546.67357281,0.00011678,2]
[323604929,1714107042450,-500.0,0.00011678,2]
[323604930,1714107042459,-500.0,0.00011678,2]
[323604931,1714107042469,-1958.1,0.00011678,2]
[323604932,1714107042479,-500.0,0.00011678,2]
[323604933,1714107042488,-1250.77,0.00011678,2]
[323604934,1714107042498,-564.11,0.00011678,2]
[323604935,1714107042508,-500.0,0.00011678,2]
[323604936,1714107042517,-622.94,0.00011678,2]
[323604937,1714107042526,-2797.34,0.00011678,2]
[323604938,1714107042534,-500.0,0.00011678,2]
[323604939,1714107042544,-500.0,0.00011678,2]
[323604940,1714107042554,-565.51,0.00011678,2]
[323604941,1714107042565,-4540.48,0.00011678,2]
[323604942,1714107042574,-818.55,0.00011678,2]
[323604943,1714107042583,-500.0,0.00011678,2]
[323604944,1714107042592,-500.0,0.00011678,2]
[323604945,1714107042601,-500.0,0.00011678,2]
[323604946,1714107042610,-533.39459822,0.00011678,2]
[323604947,1714107042618,-500.0,0.00011678,2]
[323604948,1714107042627,-679.0,0.000117,2]
[323604949,1714107042636,-500.0,0.00011719,2]
[323604950,1714107042646,-500.0,0.00011719,2]
[323604951,1714107042656,-536.33,0.00011719,2]
[323604952,1714107042668,-1559.44,0.00011719,2]
[323604953,1714107042679,-500.0,0.00011719,2]
[323604954,1714107042689,-500.0,0.00011719,2]
[323604955,1714107042698,-500.0,0.00011719,2]
[323604956,1714107042707,-1865.69,0.00011719,2]
[323604957,1714107042718,-796.67,0.00011719,2]
[323604958,1714107042728,-500.0,0.00011719,2]
[323604959,1714107042737,-500.0,0.00011719,2]
[323604961,1714107042747,-1498.87,0.00011719,2]
[323604962,1714107042756,-500.0,0.00011719,2]
[323604964,1714107042766,-1414.92,0.00011719,2]
[323604965,1714107042775,-500.0,0.00011719,2]
[323604966,1714107042784,-500.0,0.00011719,2]
[323604967,1714107042793,-509.46,0.00011719,2]
[323604968,1714107042804,-1184.57,0.00011719,2]
[323604969,1714107042812,-548.62,0.00011719,2]